bitfinex/quotes_SOLUSD_20240716
["timestamp","ask_amount","ask_price","bid_price","bid_amount"]
[1721150512852,26.2084,161.07,161.0,29.68]
[1721150513169,20.0,161.07,161.03,29.68]
[1721150513453,20.0,161.08,161.03,29.68]
[1721150513651,20.0,161.09,161.03,29.68]
[1721150513826,26.2077,161.09,161.03,29.68]
[1721150514443,18.68,161.13,161.03,29.68]
[1721150514642,31.20204095,161.12,161.06,29.68]
[1721150514947,6.207,161.11,161.06,29.68]
[1721150515144,6.2073,161.1,161.06,29.68]
[1721150515937,6.2069,161.12,161.06,29.68]
[1721150516132,6.2062,161.13,161.06,29.68]
[1721150516538,6.2065,161.12,161.06,29.68]
[1721150516946,6.2058,161.14,161.06,29.68]
[1721150517468,6.2067,161.12,161.06,29.68]
[1721150518469,20.0,161.13,161.06,29.68]
[1721150518645,41.1526,161.15,160.99,17.0737]
[1721150518646,6.2077,161.09,161.05,29.68]
[1721150519160,6.2082,161.08,161.05,29.68]
[1721150519369,6.2088,161.07,161.02,29.68]
[1721150519543,6.2088,161.06,161.02,29.68]
[1721150519858,6.2092,161.06,160.99,46.7537]
[1721150520065,6.2097,161.04,160.99,35.9225]
[1721150520251,44.9577,161.08,160.99,35.9225]
[1721150520458,26.2086,161.07,160.99,35.9225]
[1721150520940,6.2089,161.06,160.99,35.9225]
[1721150521140,26.2085,161.07,160.99,35.9225]
[1721150521540,6.2089,161.06,160.99,35.9225]
[1721150521755,41.01556452,161.13,160.99,35.9225]
[1721150521954,6.207,161.11,161.02,29.68]
[1721150522151,6.2074,161.1,161.02,29.68]
[1721150522469,6.207,161.11,161.02,29.68]
[1721150522763,6.2075,161.1,161.02,29.68]
[1721150522937,6.2069,161.11,161.02,29.68]
[1721150523141,6.2069,161.11,161.03,1.24182177]
[1721150523350,20.0,161.1,161.03,1.24182177]
[1721150523660,20.0,161.1,161.02,40.5112]
[1721150523846,6.207,161.11,161.02,40.5112]
[1721150524286,6.2074,161.1,161.02,40.5112]
[1721150524452,41.7862,161.13,161.02,40.5112]
[1721150524650,51.7862,161.13,161.02,40.5112]
[1721150524865,28.68,161.11,161.02,40.5112]
[1721150525074,6.2081,161.08,161.02,40.5112]
[1721150525658,6.2085,161.07,160.99,35.9225]
[1721150526163,28.68,161.07,160.99,6.2425]
[1721150526368,6.2095,161.05,160.99,6.2425]
[1721150527371,26.2089,161.06,160.99,6.2425]
[1721150527552,6.2092,161.05,160.99,6.2425]
[1721150527751,6.2092,161.05,160.98,10.8312]
[1721150527950,6.2097,161.04,160.98,10.8312]
[1721150528545,6.2092,161.05,160.98,10.8312]
[1721150528748,44.8889,161.06,160.98,10.8312]
[1721150529458,38.68,161.06,160.98,10.8312]
[1721150529667,44.889,161.06,160.98,10.8312]
[1721150530172,38.68,161.06,160.98,10.8312]
[1721150531758,6.2097,161.04,160.98,10.8312]
[1721150531963,6.2093,161.05,160.98,10.8312]
[1721150532462,24.8893,161.05,160.98,10.8312]
[1721150532649,6.21,161.03,160.97,29.68]
[1721150532853,6.2109,161.01,160.94,10.8312]
[1721150533046,6.2112,161.0,160.92,29.68]
[1721150533250,34.8907,161.02,160.92,29.68]
[1721150533461,26.2108,161.01,160.92,29.68]
[1721150534955,20.0,161.01,160.92,29.68]
[1721150535159,20.0,161.01,160.91,6.1625]
[1721150535160,20.0,161.02,160.95,29.68]
[1721150535369,20.0,161.03,160.95,29.68]
[1721150535550,20.0,161.04,160.95,29.68]
[1721150535881,20.0,161.05,160.95,29.68]
[1721150536055,6.2097,161.04,160.95,29.68]
[1721150536256,26.2101,161.03,160.95,29.68]
[1721150536457,20.0,161.03,160.95,29.68]
[1721150536660,26.21,161.03,160.95,29.68]
[1721150537552,20.0,161.03,160.95,29.68]
[1721150537881,26.2096,161.04,160.95,29.68]
[1721150538069,20.0,161.04,160.95,29.68]
[1721150538268,20.0,161.05,160.95,29.68]
[1721150538471,32.4095,161.06,160.96,55.8312]
[1721150538855,6.2092,161.05,160.96,55.8312]
[1721150539879,26.2004,161.06,160.98,29.68]
[1721150540380,16.2089,161.06,160.98,36.0454]
[1721150540685,26.2095,161.05,160.98,36.0454]
[1721150541578,20.0,161.05,160.98,36.0454]
[1721150541957,26.2093,161.05,160.98,36.0454]
[1721150542373,20.0,161.05,160.98,36.0454]
[1721150543885,6.2084,161.08,160.98,36.0454]
[1721150544082,15.6456,161.1,161.01,29.68]
[1721150544391,21.8532,161.1,161.01,29.68]
[1721150544684,6.2077,161.09,161.01,29.68]
[1721150545463,6.2082,161.08,161.01,29.68]
[1721150545665,6.2086,161.07,161.01,29.68]
[1721150545990,44.2006,161.08,160.98,6.3654]
[1721150546160,15.6456,161.1,160.96,10.8312]
[1721150546161,6.2112,161.0,160.96,10.8312]
[1721150546363,15.5225,161.06,160.92,10.8312]
[1721150546364,28.68,161.01,160.92,10.8312]
[1721150546686,6.2115,160.99,160.92,10.8312]
[1721150547281,28.68,160.98,160.9,35.7732]
[1721150547586,6.2119,160.98,160.9,35.7732]
[1721150547771,24.8919,160.98,160.9,35.7732]
[1721150547971,34.8919,160.98,160.9,35.7732]
[1721150548180,20.0,160.97,160.9,35.7732]
[1721150549269,26.212,160.98,160.9,35.7732]
[1721150549568,20.0,160.98,160.9,35.7732]
[1721150549971,20.0,160.99,160.9,35.7732]
[1721150550363,26.2116,160.99,160.9,35.7732]
[1721150550977,20.0,160.99,160.93,29.68]
[1721150551593,16.2107,161.02,160.93,29.68]
[1721150551810,34.3712,161.03,160.93,29.68]
[1721150551971,15.6912,161.03,160.94,1.06544981]
[1721150552295,6.2107,161.02,160.94,1.06544981]
[1721150552497,6.2108,161.01,160.94,1.06544981]
[1721150553196,6.2108,161.01,160.93,29.68]
[1721150553772,6.2877,161.07,160.91,45.0]
[1721150553773,6.2084,161.08,161.0,29.68]
[1721150553966,6.2081,161.08,161.01,1.24163596]
[1721150554181,10.0,161.1,161.01,1.24163596]
[1721150554410,11.20259318,161.09,161.01,1.24163596]
[1721150554576,10.0,161.1,161.0,29.68]
[1721150554771,6.2084,161.08,161.0,29.68]
[1721150554971,34.7284,161.11,161.01,18.44121934]
[1721150555204,11.20229742,161.1,161.01,17.2021]
[1721150555378,34.7284,161.11,161.01,17.2021]
[1721150555579,11.20222292,161.1,161.01,17.2021]
[1721150555894,6.2077,161.09,161.01,17.2021]
[1721150556099,6.2082,161.08,161.01,18.44349698]
[1721150556285,6.2092,161.06,161.01,17.2021]
[1721150556484,6.2085,161.07,161.01,17.2021]
[1721150556689,6.2081,161.08,161.01,17.2021]
[1721150556891,6.2081,161.08,161.01,17.62775252]
[1721150557202,6.2081,161.08,161.01,17.69008287]
[1721150557388,6.2081,161.08,161.01,17.2021]
[1721150558393,28.68,161.1,161.01,17.2021]
[1721150558593,6.2081,161.08,161.01,17.2021]
[1721150559007,6.2084,161.07,161.01,17.2021]
[1721150560593,6.2093,161.05,161.01,17.2021]
[1721150560793,28.68,161.08,161.0,29.68]
[1721150561100,6.2093,161.05,160.96,46.8203]
[1721150561294,6.2093,161.05,160.97,65.0]
[1721150561495,28.68,161.08,160.97,65.0]
[1721150561698,16.2089,161.06,160.97,20.0]
[1721150561905,6.2095,161.05,160.97,20.0]
[1721150562085,6.2095,161.05,160.96,46.8203]
[1721150564692,6.2089,161.06,160.96,46.8203]
[1721150564900,18.68,161.08,160.99,29.68]
[1721150565101,31.20358585,161.07,160.99,29.68]
[1721150565305,20.0,161.07,160.99,29.68]
[1721150565612,26.2088,161.07,160.99,29.68]
[1721150565812,6.209,161.06,160.99,29.68]
[1721150566692,34.889,161.06,160.99,29.68]
[1721150566908,16.209,161.06,160.99,29.68]
[1721150567308,26.2085,161.07,160.99,29.68]
[1721150567510,20.0,161.07,160.99,29.68]
[1721150567693,26.2085,161.07,160.99,29.68]
[1721150568403,6.209,161.06,160.99,29.68]
[1721150568589,16.2094,161.05,160.99,29.68]
[1721150568790,6.2103,161.03,160.96,46.8203]
[1721150569005,6.21,161.03,160.96,46.8203]
[1721150569214,10.0,161.02,160.96,46.8203]
[1721150569533,16.2105,161.02,160.96,46.8203]
[1721150570195,28.68,161.02,160.93,29.68]
[1721150570395,6.2112,161.0,160.93,29.68]
[1721150570917,26.2109,161.01,160.93,29.68]
[1721150571716,10.0,160.99,160.93,29.68]
[1721150571919,16.2116,160.99,160.93,29.68]
[1721150574923,6.2112,161.0,160.93,29.68]
[1721150575119,36.2116,160.99,160.93,29.68]
[1721150575506,20.0,160.99,160.93,29.68]
[1721150575922,16.2109,161.01,160.93,29.68]
[1721150575923,26.2112,161.0,160.93,29.68]
[1721150578026,20.0,161.0,160.93,29.68]
[1721150578226,16.0657,161.04,160.93,29.68]
[1721150578729,20.0,161.03,160.96,29.68]
[1721150579301,26.21,161.03,160.96,29.68]
[1721150579941,22.2754,161.04,160.96,29.68]
[1721150580097,6.2097,161.04,160.96,29.68]
[1721150581222,6.2093,161.05,160.96,29.68]
[1721150581428,6.2103,161.03,160.96,29.68]
[1721150581726,6.2101,161.03,160.96,29.68]
[1721150582301,10.0,161.03,160.96,29.68]
[1721150583227,10.0,161.03,160.93,29.68]
[1721150583606,6.2108,161.01,160.93,29.68]
[1721150584357,6.2114,161.0,160.93,29.68]
[1721150584524,16.2108,161.01,160.93,29.68]
[1721150584724,6.2106,161.02,160.93,29.68]
[1721150585026,28.68,161.03,160.93,29.68]
[1721150585027,16.21,161.03,160.93,29.68]
[1721150585211,10.0,161.03,160.93,29.68]
[1721150585528,28.68,161.03,160.93,29.68]
[1721150585828,16.2101,161.03,160.93,29.68]
[1721150586126,6.2112,161.0,160.93,29.68]
[1721150586811,16.2109,161.01,160.93,29.68]
[1721150587232,6.2112,161.0,160.93,29.68]
[1721150587432,16.2108,161.01,160.93,30.92265264]
[1721150587725,10.0,161.01,160.93,30.92234377]
[1721150588028,6.2108,161.01,160.93,30.92234377]
[1721150588245,10.0,161.02,160.93,29.68]
[1721150588541,26.211,161.01,160.93,29.68]
[1721150588715,20.0,161.01,160.93,29.68]
[1721150589413,26.2108,161.01,160.93,29.68]
[1721150590343,6.2111,161.0,160.99,14.85]
[1721150593325,6.2115,160.99,160.98,14.85]
[1721150593527,48.68,161.01,160.92,17.4219]
[1721150593837,6.2122,160.98,160.95,14.85]
[1721150594556,10.0,160.99,160.92,17.4219]
[1721150594557,16.2116,160.99,160.96,14.85]
[1721150594718,48.68,161.01,160.97,14.85]
[1721150595040,48.68,161.01,160.98,14.85]
[1721150595041,36.211,161.01,160.98,14.85]
[1721150595226,26.211,161.01,160.98,14.85]
[1721150595625,20.0,161.01,160.99,14.85]
[1721150595828,20.0,161.01,161.0,14.85]
[1721150596129,26.2107,161.01,161.0,14.85]
[1721150596636,10.0,161.04,161.0,14.85]
[1721150596946,16.2098,161.04,160.96,14.85]
[1721150597142,16.2098,161.04,161.02,14.85]
[1721150597331,10.0,161.04,161.02,14.85]
[1721150597534,6.2104,161.02,161.01,14.85]
[1721150597735,6.2101,161.03,161.01,14.85]
[1721150597942,16.2097,161.04,161.01,14.85]
[1721150598247,20.0,161.03,161.01,14.85]
[1721150598621,20.0,161.03,161.0,14.85]
[1721150599045,26.2101,161.03,160.96,14.85]
[1721150599238,26.2101,161.03,161.01,14.85]
[1721150600053,20.0,161.03,161.02,14.85]
[1721150600351,10.0,161.08,161.02,14.85]
[1721150600544,11.20493937,161.07,161.05,14.85]
[1721150600856,17.41318086,161.06,161.04,14.85]
[1721150601050,16.2088,161.06,161.05,14.85]
[1721150601362,6.2092,161.05,160.95,17.4376]
[1721150601527,28.68,161.06,161.02,14.85]
[1721150601727,31.20441018,161.05,161.01,14.85]
[1721150601941,20.0,161.05,161.01,14.85]
[1721150602143,20.0,161.05,161.02,14.85]
[1721150602747,10.0,161.03,161.02,14.85]
[1721150602960,16.2103,161.03,161.0,14.85]
[1721150603169,6.2104,161.02,160.95,17.4376]
[1721150603355,6.2104,161.02,161.0,14.85]
[1721150603535,16.2101,161.03,161.0,14.85]
[1721150604640,16.2101,161.03,161.01,14.85]
[1721150605657,6.2104,161.02,161.01,14.85]
[1721150605863,6.2104,161.02,161.0,14.85]
[1721150606063,6.2107,161.01,161.0,14.85]
[1721150606366,6.2104,161.02,161.0,14.85]
[1721150606547,6.2108,161.01,160.91,17.2748]
[1721150606884,6.2104,161.02,160.98,14.85]
[1721150607052,6.2104,161.02,160.99,14.85]
[1721150607236,20.0,161.01,160.99,14.85]
[1721150607437,30.0,161.01,160.99,14.85]
[1721150607763,36.2108,161.01,160.99,14.85]
[1721150607966,36.2108,161.01,160.91,17.2748]
[1721150608144,36.2108,161.01,160.98,14.85]
[1721150608837,26.2108,161.01,160.98,14.85]
[1721150609037,30.0,161.01,160.98,14.85]
[1721150609463,30.0,161.01,160.99,14.85]
[1721150609654,20.0,161.01,160.99,14.85]
[1721150610475,26.2104,161.02,161.0,14.85]
[1721150610671,26.2104,161.02,160.99,14.85]
[1721150611769,20.0,161.02,160.99,14.85]
[1721150611965,20.0,161.03,160.99,14.85]
[1721150612274,11.20613456,161.02,161.0,14.85]
[1721150612468,6.2102,161.03,161.0,14.85]
[1721150612845,11.20545523,161.02,161.0,14.85]
[1721150613151,6.2104,161.02,161.0,14.85]
[1721150613465,6.2115,161.0,160.97,14.85]
[1721150613859,6.212,160.98,160.91,17.2748]
[1721150614057,6.212,160.98,160.95,14.85]
[1721150614781,16.2123,160.97,160.91,17.2748]
[1721150614957,16.2123,160.97,160.95,14.85]
[1721150615157,16.2118,160.99,160.95,14.85]
[1721150615339,34.8918,160.99,160.95,14.85]
[1721150615544,6.212,160.98,160.95,14.85]
[1721150616466,16.2116,160.99,160.96,14.85]
[1721150616659,34.8916,160.99,160.96,14.85]
[1721150617984,6.2127,160.96,160.87,17.2006]
[1721150618275,16.2124,160.97,160.93,14.85]
[1721150618483,10.0,160.97,160.93,14.85]
[1721150618853,16.2123,160.97,160.93,14.85]
[1721150619055,6.2128,160.96,160.92,14.85]
[1721150619855,49.9936,160.97,160.93,14.85]
[1721150620055,49.9936,160.97,160.94,14.85]
[1721150620577,25.1013,160.97,160.94,14.85]
[1721150620877,15.1013,160.97,160.95,14.85]
[1721150622772,10.0,160.99,160.96,14.85]
[1721150623077,20.0,160.98,160.96,14.85]
[1721150623852,20.0,160.99,160.97,14.85]
[1721150624054,20.0,160.99,160.98,14.85]
[1721150624682,15.1309,161.01,160.98,14.85]
[1721150624858,15.1309,161.01,160.96,14.85]
[1721150625059,21.3417,161.01,160.89,0.96822929]
[1721150625359,15.1309,161.01,160.99,14.85]
[1721150625562,21.3417,161.01,160.99,14.85]
[1721150625763,21.3417,161.01,161.0,14.85]
[1721150625966,41.3417,161.01,161.0,14.85]
[1721150626378,6.2113,161.0,160.99,14.85]
[1721150627384,6.5558,161.04,160.99,14.85]
[1721150627588,6.2103,161.03,161.01,14.85]
[1721150627886,6.2104,161.02,161.0,14.85]
[1721150628090,6.2104,161.02,161.01,14.85]
[1721150628289,6.21,161.03,161.01,14.85]
[1721150629483,6.2104,161.02,161.01,14.85]
[1721150629859,6.2108,161.01,160.96,14.85]
[1721150630060,6.2108,161.01,160.99,14.85]
[1721150630285,6.2105,161.02,161.0,14.85]
[1721150632285,15.3668,161.05,160.97,0.55093222]
[1721150632496,6.21,161.03,161.02,14.85]
[1721150632662,26.21,161.03,161.02,14.85]
[1721150634184,6.2104,161.02,160.94,17.3998]
[1721150634487,6.2119,160.99,160.96,14.85]
[1721150634793,6.2121,160.98,160.96,14.85]
[1721150637481,6.2116,160.99,160.96,14.85]
[1721150637686,6.2112,161.0,160.97,14.85]
[1721150637874,20.0,160.99,160.97,14.85]
[1721150638588,26.2117,160.99,160.97,14.85]
[1721150638775,20.0,160.99,160.97,14.85]
[1721150640078,26.2116,160.99,160.97,14.85]
[1721150641294,26.2116,160.99,160.96,14.85]
[1721150642296,20.0,160.99,160.96,14.85]
[1721150643471,26.2116,160.99,160.9,16.9581]
[1721150643674,6.212,160.98,160.95,14.85]
[1721150643997,26.2116,160.99,160.95,14.85]
[1721150644494,6.212,160.98,160.9,16.9581]
[1721150644681,6.212,160.98,160.95,14.85]
[1721150644877,6.212,160.98,160.94,14.85]
[1721150645387,26.2116,160.99,160.95,14.85]
[1721150645589,26.2116,160.99,160.96,14.85]
[1721150646106,6.2112,161.0,160.97,14.85]
[1721150646695,6.2116,160.99,160.97,14.85]
[1721150646990,6.2119,160.98,160.96,14.85]
[1721150647676,6.2116,160.99,160.96,14.85]
[1721150648485,6.2116,160.99,160.97,14.85]
[1721150648991,6.2113,161.0,160.97,14.85]
[1721150649192,50.1001,161.02,160.97,14.85]
[1721150649193,6.2108,161.01,160.97,14.85]
[1721150649411,6.2108,161.01,160.98,14.85]
[1721150649699,6.2108,161.01,160.99,14.85]
[1721150650706,6.2112,161.0,160.98,14.85]
[1721150651073,6.2109,161.01,160.98,14.85]
[1721150652196,6.2109,161.01,160.99,14.85]
[1721150653615,16.2066,161.12,161.0,29.7]
[1721150653789,16.2065,161.12,161.08,14.85]
[1721150654100,2.6882746,161.11,161.09,14.85]
[1721150654302,16.2066,161.12,161.09,14.85]
[1721150654673,6.207,161.11,161.09,14.85]
[1721150654877,16.2066,161.12,161.09,14.85]
[1721150656194,10.0,161.12,161.04,14.85]
[1721150656395,6.2077,161.09,161.01,20.0]
[1721150656673,6.2077,161.09,161.05,14.85]
[1721150656877,34.8874,161.1,161.06,14.85]
[1721150657496,16.2074,161.1,161.06,14.85]
[1721150657705,6.2074,161.1,161.07,14.85]
[1721150657902,16.2074,161.1,161.07,14.85]
[1721150658277,6.2074,161.1,161.07,14.85]
[1721150658514,61.2068,161.12,160.97,20.0]
[1721150658675,26.207,161.11,161.08,14.85]
[1721150659281,6.2073,161.1,161.07,14.85]
[1721150659680,22.5734,161.13,161.08,14.85]
[1721150659881,16.3669,161.13,161.09,14.85]
[1721150660309,22.573,161.13,161.09,14.85]
[1721150660478,35.0469,161.13,160.98,45.0]
[1721150660684,35.0469,161.13,161.09,14.85]
[1721150661185,20.0,161.12,161.09,14.85]
[1721150661801,20.0,161.12,161.1,14.85]
[1721150662990,22.5731,161.13,161.1,14.85]
[1721150663792,6.2066,161.12,161.09,14.85]
[1721150664387,16.3669,161.13,160.99,17.2484]
[1721150664388,10.0,161.09,160.99,17.2484]
[1721150664593,16.2078,161.09,161.04,14.85]
[1721150664897,10.0,161.09,161.05,14.85]
[1721150665493,16.2077,161.09,161.05,14.85]
[1721150666122,10.0,161.11,161.06,14.85]
[1721150666412,20.0,161.1,161.07,14.85]
[1721150666610,20.0,161.1,161.06,14.85]
[1721150666995,26.2076,161.1,161.06,14.85]
[1721150667613,6.2077,161.09,161.06,14.85]
[1721150667925,24.85,161.08,161.02,14.85]
[1721150668092,6.2085,161.07,161.02,14.85]
[1721150668293,6.2085,161.07,160.96,59.4]
[1721150668492,37.1043,161.07,160.96,59.4]
[1721150668687,37.1043,161.07,161.02,14.85]
[1721150669107,22.2543,161.07,161.02,14.85]
[1721150669600,16.0458,161.07,161.03,14.85]
[1721150670910,16.0458,161.07,161.04,14.85]
[1721150671114,16.0458,161.07,161.05,14.85]
[1721150671301,20.0,161.1,161.06,14.85]
[1721150671529,15.3432,161.11,161.08,14.85]
[1721150671697,25.3432,161.11,161.08,14.85]
[1721150671897,31.5501,161.11,161.07,14.85]
[1721150674021,25.3432,161.11,161.07,14.85]
[1721150674225,15.3432,161.11,161.07,14.85]
[1721150674527,44.0232,161.11,161.07,14.85]
[1721150674706,6.2074,161.1,161.06,14.85]
[1721150674910,25.3432,161.11,161.07,14.85]
[1721150675720,31.5501,161.11,161.07,14.85]
[1721150676434,15.3432,161.11,161.08,14.85]
[1721150678236,15.3432,161.11,161.09,14.85]
[1721150678532,15.3432,161.11,161.04,14.85]
[1721150678828,15.3432,161.11,161.08,14.85]
[1721150680541,31.5501,161.11,161.08,14.85]
[1721150680708,6.2073,161.1,161.08,14.85]
[1721150680909,31.5502,161.11,161.08,14.85]
[1721150681210,15.3432,161.11,161.08,14.85]
[1721150681610,25.3432,161.11,161.01,17.2327]
[1721150681824,25.3432,161.11,161.07,14.85]
[1721150682307,31.5502,161.11,161.07,14.85]
[1721150682538,16.2077,161.09,161.04,14.85]
[1721150682716,10.0,161.09,161.05,14.85]
[1721150683113,16.2077,161.09,161.06,14.85]
[1721150683423,16.2077,161.09,160.97,17.212]
[1721150683424,6.2081,161.08,160.97,17.212]
[1721150683627,6.2081,161.08,161.04,14.85]
[1721150684118,6.2081,161.08,161.03,14.85]
[1721150684708,10.0,161.09,161.04,14.85]
[1721150685016,6.2081,161.08,160.97,17.212]
[1721150685210,16.2078,161.09,161.04,14.85]
[1721150685643,6.2081,161.08,161.04,14.85]
[1721150687863,31.2924,161.07,161.04,14.85]
[1721150688147,10.0,161.04,160.97,14.85]
[1721150688322,6.2107,161.02,160.97,14.85]
[1721150689231,6.2108,161.01,160.97,14.85]
[1721150689757,21.0604,161.02,160.97,14.85]
[1721150690048,6.2104,161.02,160.97,14.85]
[1721150690750,6.2104,161.02,160.98,14.85]
[1721150691926,6.2108,161.01,160.98,14.85]
[1721150692125,75.0,161.06,161.0,14.85]
[1721150692333,6.2107,161.02,160.99,14.85]
[1721150692532,6.2107,161.02,160.98,14.85]
[1721150693023,6.211,161.01,160.98,14.85]
[1721150693554,43.53,161.04,160.98,14.85]
[1721150693739,30.0,161.06,160.9,284.50773316]
[1721150693944,26.21,161.03,160.99,14.85]
[1721150694475,20.0,161.03,161.0,14.85]
[1721150694832,20.0,161.03,160.98,14.85]
[1721150695548,6.2109,161.01,160.9,23.70773316]
[1721150695752,6.2109,161.01,160.97,14.85]
[1721150696656,20.0,161.03,160.97,14.85]
[1721150696839,20.0,161.03,160.98,14.85]
[1721150697372,6.2104,161.02,160.99,14.85]
[1721150700456,26.2101,161.03,160.99,14.85]
[1721150700659,6.2105,161.02,160.99,14.85]
[1721150701742,20.0,161.03,160.99,14.85]
[1721150701944,26.2103,161.03,160.99,14.85]
[1721150702154,20.0,161.03,160.99,14.85]
[1721150702343,6.2105,161.02,160.99,14.85]
[1721150702864,6.2108,161.01,160.98,14.85]
[1721150703165,6.2112,161.0,160.91,20.0]
[1721150703342,6.2112,161.0,160.96,14.85]
[1721150703668,14.85,160.99,160.9,6.47780639]
[1721150703864,6.212,160.98,160.93,14.85]
[1721150704046,6.212,160.98,160.88,59.4]
[1721150704047,6.212,160.98,160.94,14.85]
[1721150704863,26.2117,160.99,160.95,14.85]
[1721150705070,20.0,160.99,160.97,14.85]
[1721150705247,21.6218,161.01,160.97,14.85]
[1721150705448,15.411,161.01,160.99,14.85]
[1721150705647,15.411,161.01,161.0,14.85]
[1721150706037,30.8945,161.06,161.0,14.85]
[1721150706038,15.8221,161.05,161.0,14.85]
[1721150706243,22.0316,161.05,161.01,14.85]
[1721150706645,22.0316,161.05,160.96,14.85]
[1721150706646,15.8221,161.05,160.96,14.85]
[1721150706845,36.8816,161.05,160.92,16.941]
[1721150707060,15.8221,161.05,161.03,14.85]
[1721150708273,15.8221,161.09,160.96,59.4]
[1721150708439,15.8221,161.09,161.06,14.85]
[1721150708645,15.8221,161.09,161.07,14.85]
[1721150709155,15.8221,161.09,161.06,14.85]
[1721150709364,22.03,161.09,161.06,14.85]
[1721150709570,15.8221,161.09,161.06,14.85]
[1721150709749,15.8221,161.09,161.07,14.85]
[1721150709945,15.8221,161.09,161.06,14.85]
[1721150710165,25.8221,161.09,160.98,10.8312]
[1721150710371,24.85,161.07,161.01,14.85]
[1721150710673,6.2089,161.06,161.01,14.85]
[1721150710866,6.2089,161.06,161.02,14.85]
[1721150711042,6.2085,161.07,161.03,14.85]
[1721150711366,6.2096,161.04,160.95,6.3594]
[1721150711563,20.0,161.03,161.0,14.85]
[1721150711767,20.0,161.03,160.96,59.4]
[1721150711768,34.85,161.06,161.01,14.85]
[1721150711991,6.2093,161.05,161.01,14.85]
[1721150712179,20.0,161.04,161.01,14.85]
[1721150712344,20.0,161.04,160.96,29.68]
[1721150712546,26.2096,161.04,160.96,29.68]
[1721150713151,6.2103,161.03,160.96,29.68]
[1721150713451,6.2109,161.01,160.96,29.68]
[1721150713649,6.2105,161.02,160.96,29.68]
[1721150713855,22.0805,161.03,160.96,29.68]
[1721150714068,6.2104,161.02,160.96,29.68]
[1721150714271,22.0806,161.03,160.96,29.68]
[1721150715554,15.8705,161.03,160.96,29.68]
[1721150715961,22.0806,161.03,160.96,29.68]
[1721150716164,15.8705,161.03,160.96,29.68]
[1721150717253,15.9345,161.07,160.99,29.68]
[1721150717460,15.9345,161.07,161.0,1.24196944]
[1721150717663,15.9345,161.07,161.0,46.24196944]
[1721150717978,15.9345,161.07,161.0,1.24196944]
[1721150718175,15.9345,161.07,160.99,29.68]
[1721150718489,22.143,161.07,161.0,1.24031443]
[1721150718665,15.9345,161.07,161.0,1.24031443]
[1721150718870,15.9345,161.07,160.97,37.3856]